Cogmind - Beta 16 @@@ ROGUE MODE // 2026.02.03 @ 00:34:10 Player: Megaknight51 Result: Destroyed by Y-45 Defender with Beam Rifle Performance ------------- Evolutions (2) 1000 Regions Visited (4) 800 Robots Destroyed (84) 420 Value Destroyed (2537) 2537 Prototype IDs (8) 160 Alien Tech Used (0) 0 Bonus (0) 0 TOTAL SCORE: 4917 Bonus ------- None Cogmind --------- Core Integrity 0/550 Matter 248/300 Energy 68/100 System Corruption 6% Temperature Cool (9) Movement Walking (195) Ox1 Location -8/Storage Parts ------- > --- POWER (1) -------- (None) > --- PROPULSION (4) --- Carbon-fiber Leg Titanium Leg > --- UTILITY (4) ------ High-capacity Storage Unit Machine Analyzer Hacking Suite System Shield > --- WEAPON (2) ------- Light Assault Rifle Heavy Assault Rifle > --- INVENTORY (20) --- Improved Ion Engine Light Nuclear Core Light Nuclear Core Improved Deuterium Engine Aluminum Leg Carbon-fiber Leg High-capacity Matter Pod (200) Compact Matter Pod (150) Structural Scanner Trap Scanner Advanced Visual Processing Unit Improved Signal Interpreter Improved Terrain Scanner Light Armor Plating Medium Armor Plating Hacking Suite Hacking Suite Heavy Particle Cannon Peak State ------------ > --- POWER ------------ Light Nuclear Core > --- PROPULSION ------- Carbon-fiber Leg Titanium Leg Titanium Leg Titanium Leg > --- UTILITY ---------- High-capacity Storage Unit Machine Analyzer Hacking Suite System Shield > --- WEAPON ----------- Heavy Particle Cannon Compact Ion Cannon > --- INVENTORY -------- Improved Ion Engine Light Nuclear Core Light Nuclear Core Improved Deuterium Engine Aluminum Leg Carbon-fiber Leg Carbon-fiber Leg High-capacity Matter Pod Compact Matter Pod Structural Scanner Trap Scanner Advanced Visual Processing Unit Improved Signal Interpreter Improved Terrain Scanner Light Armor Plating Medium Armor Plating Hacking Suite Hacking Suite Light Assault Rifle Heavy Assault Rifle [Rating: 38] Favorites ----------- Power Ion Engine Engine Ion Engine Power Core Light Nuclear Core Propulsion Aluminum Leg Treads Light Treads Leg Aluminum Leg Utility Machine Analyzer Device Seismic Detector Storage High-capacity Storage Unit Processor Machine Analyzer Hackware Hacking Suite Weapon Minigun Energy Gun Medium Laser Energy Cannon Beam Cannon Ballistic Gun Minigun Ballistic Cannon Improved Light Cannon Build | -11 -10 -9 -8 -8 ------- Run | Yrd Mat Mat Mat Sto Slots Evolved 4 | . . 2 2 . Power . | . . . . . Propulsion 2 | . . 2 . . Utility 2 | . . . 2 . Weapon . | . . . . . Parts Attached 66 | 7 2 20 28 9 Power 9 | 1 . 3 4 1 Engine 7 | 1 . 3 2 1 Core 2 | . . . 2 . Reactor . | . . . . . Propulsion 25 | 2 . 7 16 . Treads 4 | 2 . 2 . . Leg 21 | . . 5 16 . Wheel . | . . . . . Hover . | . . . . . Flight . | . . . . . Utility 9 | 2 1 2 3 1 Device 1 | 1 . . . . Storage 3 | 1 1 1 . . Processor 1 | . . 1 . . Hackware 4 | . . . 3 1 Protection . | . . . . . Artifact . | . . . . . Weapon 23 | 2 1 8 5 7 Energy Gun 2 | 1 . 1 . . Energy Cannon 3 | . 1 . . 2 Ballistic Gun 13 | 1 . 5 2 5 Ballistic Cannon 5 | . . 2 3 . Launcher . | . . . . . Special Weapon . | . . . . . Impact Weapon . | . . . . . Slashing Weapon . | . . . . . Piercing Weapon . | . . . . . Special Melee Weapon . | . . . . . Unidentified Prototypes 3 | . . 2 . 1 Corrupted Parts 1 | . . . . 1 System Corruption 6 | . . . . 6 Parts Lost 22 | . . 2 13 7 Power 2 | . . . 1 1 Propulsion 9 | . . 1 5 3 Utility 2 | . . . 2 . Weapon 9 | . . 1 5 3 Highest Loss Streak 10 | . . 1 10 6 To Critical Strikes . | . . . . . Average Backups 16 | 1 12 18 18 20 Power 2 | . 1 3 1 4 Propulsion . | . 1 . 1 3 Utility 10 | . 3 11 12 11 Weapon 3 | . 5 3 3 1 Tool/Special . | . . . . . Unused Backups 41 | . 4 15 4 18 Power 9 | . 2 2 1 4 Propulsion 1 | . . . . 1 Utility 24 | . . 8 3 13 Weapon 7 | . 2 5 . . Tool/Special . | . . . . . Average Slot Usage (%) 98 | . 100 99 94 96 Engine 9 | . 14 11 5 2 Core 1 | . . . 2 6 Treads 6 | . 28 5 . . Leg 30 | . . 37 32 35 Device 2 | . 14 . . . Storage 10 | . 14 11 9 9 Processor 8 | . . 10 9 9 Hackware 6 | . . . 17 16 Energy Cannon 5 | . 13 5 . 4 Ballistic Gun 11 | . 14 14 6 8 Ballistic Cannon 4 | . . 2 11 3 Peak Build Rating 38 | 7 9 21 36 38 Average Rating 19 | 5 8 16 28 33 On Entrance 13 | . 7 9 19 31 Avg Prop Armor Cover (%) 9 | . . 9 . . Naked Turns . | . . . . . Heaviest Build 56 | 14 30 56 56 55 Greatest Support 80 | 40 40 80 66 66 Greatest Overweight (x) 15 | . . 2 15 . Average Overweight (x) . | . . . . . Largest Inventory Capacity 20 | 8 15 20 20 20 Average Capacity 18 | 7 13 18 20 20 Most Carried 20 | 2 15 20 20 20 Average Carried 17 | 1 12 18 18 19 Final Capacity 20 | 8 15 20 20 20 Final Carried 20 | 2 15 20 20 18 Class Distribution -------------------- 64% | Mutant 27% | Hacker-Mutant 7% | Scavenger-Mutant Dominant Class ---------------- Mutant | -10/Materials Mutant | -9/Materials Hacker-Mutant | -8/Materials Hacker-Mutant | -8/Storage Resources | -11 -10 -9 -8 -8 ----------- Run | Yrd Mat Mat Mat Sto Matter Collected 2348 | 277 56 757 947 311 Remotely . | . . . . . Salvage Created 2919 | 153 353 960 951 502 Parts 171 | 6 26 66 45 28 Haulers Intercepted 2 | . 1 1 . . Recyclers Shooed 4 | . . 2 1 1 Parts Field Recycled . | . . . . . Retrieved Matter . | . . . . . Parts Self-Destructed . | . . . . . Prevented . | . . . . . Parts Restored . | . . . . . Kills | -11 -10 -9 -8 -8 ------- Run | Yrd Mat Mat Mat Sto Combat Hostiles Destroyed 68 | . 7 28 22 11 Guns 39 | . 2 16 16 5 Cannons 27 | . 5 11 6 5 Classes Destroyed 13 | 3 4 2 4 . Worker 4 | 1 1 2 . . Builder 3 | . 3 . . . Tunneler 3 | 3 . . . . Hauler 2 | . 1 1 . . Recycler 2 | 1 . . . 1 Operator 2 | . . 1 1 . Swarmer 18 | . 3 12 . 3 Grunt 33 | . 4 12 14 3 Duelist 1 | . . . 1 . Sentry 11 | . . 4 3 4 Specialist 2 | . . . 2 . Hunter 2 | . . . 1 1 Heavy 1 | . . . 1 . Best Kill Streak 7 | 4 4 7 7 5 Combat Bots Only 7 | . 3 6 7 4 Max Kills in Single Turn 2 | 1 1 2 1 1 Gunslinging . | . . . . . Exploded . | . . . . . Melee . | . . . . . Uniques/NPCs Destroyed . | . . . . . Combat | -11 -10 -9 -8 -8 -------- Run | Yrd Mat Mat Mat Sto Hostile Shots Fired 423 | . 33 128 156 106 Missed 117 | . 8 35 44 30 Hits 306 | . 25 93 112 76 Melee 2 | . . . 2 . Projectile 304 | . 25 93 110 76 AOE 2 | . . . 2 . Critical Strikes 12 | . . . 7 5 Damage Taken 4535 | . 279 869 2274 1113 Core 695 | . 41 102 366 186 Absorbed by Shields . | . . . . . Core Remaining (%) 85 | 100 83 74 . . Volleys Fired 256 | 7 36 89 84 40 Largest 2 | 2 2 2 2 2 Hottest 165 | 70 80 83 66 165 Shots Fired 490 | 14 70 178 166 62 Gun 288 | 14 36 114 91 33 Cannon 202 | . 34 64 75 29 Launcher . | . . . . . Special . | . . . . . Kinetic 379 | 7 36 122 166 48 Thermal 111 | 7 34 56 . 14 Explosive . | . . . . . Electromagnetic . | . . . . . Robot Hit Streak 14 | 5 7 14 13 14 Robot Miss Streak 4 | 1 3 4 3 1 Penetration Max 1 | . . . 1 . Secondary Targets 3 | . . . 1 2 Max Gunslinging Chain 1 | . . . 1 1 Shots Hit Robots 298 | 9 31 108 105 45 Core Hits 127 | 6 16 40 47 18 Critical Kills 3 | . 1 2 . . Critical Parts Destroyed 3 | . . 1 2 . Critical Strikes 11 | 2 1 3 5 . Burn 2 | 2 . . . . Meltdown 2 | . 1 1 . . Destroy 4 | . . 2 2 . Blast 3 | . . . 3 . Melee Attacks . | . . . . . Impact . | . . . . . Slashing . | . . . . . Piercing . | . . . . . Sneak Attacks . | . . . . . Combat Hostiles . | . . . . . Follow-up Attacks . | . . . . . Damage Inflicted 5430 | 114 485 1788 2120 923 Guns 2757 | 114 111 945 1140 447 Cannons 2514 | . 334 776 951 453 Explosions . | . . . . . Melee . | . . . . . Ramming 159 | . 40 67 29 23 Kinetic 3930 | 26 111 1058 2091 644 Thermal 1341 | 88 334 663 . 256 Explosive . | . . . . . Electromagnetic . | . . . . . Impact . | . . . . . Slashing . | . . . . . Piercing . | . . . . . Highest Corruption 6 | . . . . 6 Average Corruption 6 | . . . . 6 Corruption Purged . | . . . . . Corruption Blocked . | . . . . . Overload Shots . | . . . . . Overflow Damage 4 | . . . . 4 Projectiles 4 | . . . . 4 Explosions . | . . . . . Melee . | . . . . . Knockbacks 18 | . . 1 12 5 Impact 2 | . . . 1 1 Kinetic 14 | . . 1 10 3 Secondary 2 | . . . 1 1 Self-Inflicted Damage . | . . . . . Shots . | . . . . . Rammed 2 | . 2 . . . Targets Rammed 24 | . 3 12 7 2 Kicked 21 | . . 12 7 2 Crushed 1 | . 1 . . . Highest Temperature 389 | 70 278 190 86 389 Average Temperature 67 | 31 97 55 19 135 Received Heat Transfer 1608 | . 132 237 888 351 Effects 8 | . 4 . . 4 Energy Bleed 2 | . 1 . . 1 Interference 6 | . 3 . . 3 Siege Activations . | . . . . . Martial Activations . | . . . . . Shielding Activations . | . . . . . Robots Disrupted . | . . . . . Combat Hostiles . | . . . . . Robots Corrupted . | . . . . . Combat Hostiles . | . . . . . Parts Fried . | . . . . . Impact Corruptions 1 | . . . . 1 Robots Melted 3 | . 1 1 . 1 Combat Hostiles 2 | . . 1 . 1 Parts Melted 7 | . 3 3 . 1 Heat Transferred 2886 | 407 703 1406 . 370 Parts Sabotaged . | . . . . . Parts Stolen . | . . . . . Parts Stripped . | . . . . . Power Chain Reactions . | . . . . . Alert | -11 -10 -9 -8 -8 ------- Run | Yrd Mat Mat Mat Sto Maximum Alert Level 1 | . . . 1 . Low Security (%) 95 | 100 100 100 80 100 Level 1 4 | . . . 19 . Level 2 . | . . . . . Level 3 . | . . . . . Level 4 . | . . . . . Level 5 . | . . . . . High Security . | . . . . . Max Security . | . . . . . Peak Influence 266 | 10 130 198 266 182 Initial 107 | . . 31 82 107 Average 93 | 1 58 110 93 102 Influence Increases 2146 | 25 256 809 685 371 Destroy 0b10 Robot/C 1360 | . 140 560 440 220 Destroy 0b10 Robot/NC 80 | 25 25 20 5 5 Destroy Leader 334 | . 32 122 110 70 Successful Hack 59 | . 14 30 3 12 Disable Machine 90 | . . 30 30 30 Destroy Structure 13 | . . 2 7 4 Lose Combat Pursuer 210 | . 45 45 90 30 Influence Decreases 2101 | 25 180 689 627 580 Entered New Map 306 | . . 45 114 147 Time Decay 1428 | 25 180 624 383 216 Lost Part 220 | . . 20 130 70 Purge Threat 147 | . . . . 147 Squads Dispatched 13 | . 1 5 5 2 Investigation 5 | . 1 2 1 1 Extermination . | . . . . . Reinforcement 7 | . . 3 4 . Assault . | . . . . . Garrison 1 | . . . . 1 Intercept . | . . . . . Searches Triggered . | . . . . . Construction Impeded 1 | . . . 1 . Haulers Reinforced . | . . . . . Active Scanning Responses . | . . . . . Cargo Convoy Interrupts . | . . . . . Stealth | -11 -10 -9 -8 -8 --------- Run | Yrd Mat Mat Mat Sto Distress Signals 7 | . . 4 3 . Communications Jammed . | . . . . . Distress Signals . | . . . . . Times Spotted 126 | . 14 55 37 20 Peak Tracking Total 10 | . 4 6 10 6 Tactical Retreats 8 | . 1 1 4 2 Traps | -11 -10 -9 -8 -8 ------- Run | Yrd Mat Mat Mat Sto Traps Triggered 5 | . 1 1 1 2 Indirectly . | . . . . . Trap Hack Attempts . | . . . . . Triggered . | . . . . . Disarmed . | . . . . . Reprogrammed . | . . . . . Reused . | . . . . . Traps Extracted . | . . . . . Installed . | . . . . . Triggered . | . . . . . Machines | -11 -10 -9 -8 -8 ---------- Run | Yrd Mat Mat Mat Sto Machines Disabled 6 | . . 2 2 2 Max in Single Turn 1 | . . 1 1 1 Machines Repaired . | . . . . . Machines Dismantled . | . . . . . Machines Sabotaged . | . . . . . Overloaded Fab Kills . | . . . . . Hacking | -11 -10 -9 -8 -8 --------- Run | Yrd Mat Mat Mat Sto Machines Accessed 10 | . 2 4 1 3 Terminals 10 | . 2 4 1 3 Fabricators . | . . . . . Repair Stations . | . . . . . Recycling Units . | . . . . . Scanalyzers . | . . . . . Garrison Access . | . . . . . Total Hacks 36 | . 5 15 5 11 Successful 20 | . 3 8 3 6 Failed 16 | . 2 7 2 5 Catastrophic 3 | . 1 1 . 1 Database Lockouts . | . . . . . Manual 18 | . 1 13 1 3 Terminals 36 | . 5 15 5 11 Fabricators . | . . . . . Repair Stations . | . . . . . Recycling Units . | . . . . . Scanalyzers . | . . . . . Garrison Access . | . . . . . Terminal Hacks 20 | . 3 8 3 6 Robot Schematic 1 | . . 1 . . Robot Analysis 5 | . . 3 . 2 Prototype ID Bank 3 | . . 2 1 . Open Door 1 | . . . . 1 Branch Access Points 2 | . 1 1 . . Emergency Access Points 2 | . . . 1 1 Terminal Index 1 | . . 1 . . Unreport Threat 2 | . . . . 2 Hauler Manifests 1 | . 1 . . . Registered Components 2 | . 1 . 1 . Fabricator Hacks . | . . . . . Repair Station Hacks . | . . . . . Recycling Unit Hacks . | . . . . . Scanalyzer . | . . . . . Garrison Access Hacks . | . . . . . Unauthorized Hacks . | . . . . . Terminals . | . . . . . Fabricators . | . . . . . Repair Stations . | . . . . . Recycling Units . | . . . . . Scanalyzers . | . . . . . Garrison Access . | . . . . . Data Cores Recovered . | . . . . . Used . | . . . . . Hacking Detections 10 | . 2 4 1 3 Full Trace Events 2 | . . 2 . . Feedback Events . | . . . . . Feedback Blocked . | . . . . . Robot Schematics Acquired 1 | . . 1 . . Robots Built . | . . . . . Authchips . | . . . . . Time . | . . . . . Total Robot Build Rating . | . . . . . Part Schematics Acquired . | . . . . . Parts Built . | . . . . . Authchips . | . . . . . Time . | . . . . . Total Part Build Rating . | . . . . . Part Studies Acquired . | . . . . . Parts Repaired . | . . . . . Time . | . . . . . Parts Recycled . | . . . . . Recycled Matter . | . . . . . Retrieved Matter . | . . . . . Retrieved Components . | . . . . . Parts Scanalyzed . | . . . . . Part Schematics Acquired . | . . . . . Parts Damaged . | . . . . . Bothacking | -11 -10 -9 -8 -8 ------------ Run | Yrd Mat Mat Mat Sto Used RIF Installer . | . . . . . Robots Hacked . | . . . . . Non-combat . | . . . . . Combat . | . . . . . Robot Hacks Applied . | . . . . . Relay Couplers Released . | . . . . . Fabnet Peak Effective % . | . . . . . Robots Rewired . | . . . . . Allies Hacked . | . . . . . Hacks Repelled . | . . . . . Allies | -11 -10 -9 -8 -8 -------- Run | Yrd Mat Mat Mat Sto Total Allies . | . . . . . Largest Group . | . . . . . Highest-Rated Group . | . . . . . Highest-Rated Ally . | . . . . . Total Orders . | . . . . . Ally Attacks . | . . . . . Total Damage . | . . . . . Kills . | . . . . . Allies Corrupted . | . . . . . Allies Melted . | . . . . . Intel | -11 -10 -9 -8 -8 ------- Run | Yrd Mat Mat Mat Sto Active Infowar (turns) 4228 | 40 604 2118 1144 322 Seismic 668 | 40 604 24 . . Machine Analysis 3560 | . . 2094 1144 322 Robot Analysis Total 5 | . . 3 . 2 Derelict Logs Recovered . | . . . . . Drone Launches . | . . . . . Drone Recoveries . | . . . . . Exploration | -11 -10 -9 -8 -8 ------------- Run | Yrd Mat Mat Mat Sto Turns Passed 4579 | 189 615 2124 1144 507 Spaces Moved 2018 | 102 274 910 460 272 Core 9 | 5 . . 4 . Treads 488 | 97 274 117 . . Legs 1521 | . . 793 456 272 Wheels . | . . . . . Hover . | . . . . . Flight . | . . . . . Fastest Speed 50 | 50 160 120 105 127 Average Speed 163 | 154 160 178 159 127 Slowest Speed 800 | 160 160 260 800 130 Overloaded Moves . | . . . . . Propulsion Burnouts . | . . . . . Robots Hopped . | . . . . . Potential Cave-ins . | . . . . . Cave-ins Triggered . | . . . . . Exploration Rate (%) 33 | 5 41 50 33 40 Regions Visited 4 Branch Regions 1 Pre-discovered Areas . | . . . . . Known Exits Taken . | . . . . . Unknown Exits Taken 4 | 1 1 1 1 . Scrap Searched . | . . . . . Spaces Dug . | . . . . . Terrain Destroyed 8 | . . . 3 5 Melee . | . . . . . Projectile 8 | . . . 3 5 AOE . | . . . . . Terrain Rammed . | . . . . . Walls Destroyed . | . . . . . Machines Disabled . | . . . . . Actions | -11 -10 -9 -8 -8 --------- Run | Yrd Mat Mat Mat Sto Total 2859 | 117 391 1253 720 378 Wait 378 | . 55 168 112 43 Move 2014 | 101 273 909 459 272 Hop . | . . . . . Pick Up 61 | 2 17 25 12 5 Fast Attach 19 | 7 . 3 6 3 Attach 15 | . . 3 10 2 Detach 1 | . . 1 . . Swap 37 | . 2 16 14 5 Drop 54 | . 5 27 16 6 Fire 256 | 7 36 89 84 40 Melee . | . . . . . Ram . | . . . . . Kick 21 | . . 12 7 2 Crush 3 | . 3 . . . Escape Stasis . | . . . . . Rewire . | . . . . . Trap . | . . . . . Miscellaneous . | . . . . . Route ------- -11/Scrapyard -10/Materials (discovered 4 exits: *Mat / Min x2 / [*Sub]) -9/Materials (discovered 4 exits: *Mat x2 / Min x2) -8/Materials -8/Storage History --------- Turn | Location | Event 5 | -11/Scrapyard | Discovered new exit (range 16) 190 | -11/Scrapyard | Entered Materials 305 | -10/Materials | Build established: Mutant 400 | -10/Materials | Discovered new exit (range 4) 759 | -10/Materials | Identified exit to Mines 775 | -10/Materials | Discovered new exit (range 15) 790 | -10/Materials | Derelicts attacked the area 805 | -10/Materials | Entered another Materials area 805 | -9/Materials | Evolved 2 slots: Propulsion x2 2151 | -9/Materials | Identified exit to Mines 2151 | -9/Materials | Discovered new exit (range 16) 2919 | -9/Materials | Discovered new exit (range 5) 2929 | -9/Materials | Entered another Materials area 2929 | -8/Materials | Evolved 2 slots: Utility x2 3242 | -8/Materials | Build established: Hacker-Mutant 3639 | -8/Materials | Discovered new exit (range 15) 3694 | -8/Materials | Core integrity fell below 50% 3735 | -8/Materials | Lost 10 parts (1p4n1u4w) 3887 | -8/Materials | Destroyed 7 combat bots 4073 | -8/Materials | Entered Storage 4374 | -8/Storage | Core integrity fell below 20% 4580 | -8/Storage | Destroyed by Y-45 Defender with Beam Rifle Last Messages --------------- 04570_ K-01 Serf collects debris. 04570_ Critical hit (Burn: +37). 04571_ R-06 Scavenger collects Imp. Ion Engine. 04572_ Carbon-fiber Leg destroyed. 04572_ Gauss Rifle destroyed. 04573_ K-01 Serf collects debris. 04573_ Critical hit (Burn: +37). 04574_ Acquired Hvy. Assault Rifle. 04574_ R-06 Scavenger collects Lgt. Treads. 04574_ Titanium Leg destroyed. 04575_ Lgt. Deuterium Engine destroyed. 04576_ Critical hit (Burn: +37). 04577_ K-01 Serf collects debris. 04578_ K-01 Serf destroyed. 04578_ Titanium Leg destroyed. 04578_ Hvy. Assault Rifle destroyed. 04578_ R-06 Scavenger destroyed. 04579_ Integrated Corrupted Lgt. Assault Rifle (+6). 04579_ R-06 Scavenger collects Lgt. Treads. 04580_ Y-45 Defender destroyed. Map ----- +----------------------------------------------------+ | | | | | | | | | | | | | ?????????????????????????????????????????????????? | | ?????????????????????????????????????????????????# | | ??????????????????????????###????????????????????# | | ??????????????????????????# ###################### | | ??????????????????????????# %= + | | ??????????????????????????# # ########+##??# # | | ??????????????????????????### #?? ## # # | | ????????????????????????????#%#?? ## """ + + | | ????????????????????????????# #? ## """ # # | | ????????????????????????????# ## ##* ""? # # | | ?????????????????????# ###### ## # ?? # ## | | ?????????????????????# # # ???? ??# | | ?????????????????????# """ # ## #####+##+## | | ?????????????????????# "G + = | | ?????????????????????# """ ## ##+##### | | ?????????????????????# ??# " "" # ??? | | ?????????????#???????# %!??# "R"" + ? | | ?????????????# ########+#### """" # | | ?????????????# g %^=!*Yr # | | ?????????????# @% g%! + | | ?????????????+ %! ! ################# | | ?????????????# Y ##???????????????? | | ?????????????# ########!= #????????????????? | | ?????????????#??????????#^! uY#????????????????? | | ????????????????????????# + ???????????????? | | ????????????????????????# # ""?????????????? | | ????????????????????????# """u # ""?????????????? | | ????????????????????????# """ #? ????????????? | | ????????????????????????# """ #?? ????????????? | | ????????????????????????# #???#????????????? | | ????????????????????????# ? ????????????????# | | ????????????????????????# ##??####???????????????# | | ????????????????????????# ???????????????????????# | | ????????????????????????#k???????????????????????# | | ????????????????????????? ???????????????????????# | | ????????????????????????? ???????????????????????# | | ?????????????????????????????????????????????????# | | ?????????????????????????????????????????????????# | | ?????????????????????????????????????????????????# | | ???????????????????????????????????????????? ????# | | ???????????????????????????????????????? # | | ???????????????????????????????????????? | | ???????????????????????????????????????? | | ???????????????????????????????????????????### | +----------------------------------------------------+ Best States ------------- Heat Dissipation 31 Energy Generation 14 Energy Capacity 265 Matter Stores 300 Matter Capacity 300 Sight Range 16 Terrain Scan Density 10 Evasion (%) 55 Recoil Reduction 4 Offensive Hacking 20 Defensive Hacking 10 Item Schematics ----------------- None Robot Schematics ------------------ O-16 Technician | -9/Materials | Hacked Fabricated ------------ Nothing Repaired ---------- Nothing Studied --------- None Alien Tech Used ----------------- None Achievements -------------- None Challenges ------------ None Game ------ Seed ColdAssaultPit Manual? 0 Play Time 00:49:07 Cumulative 43.8 hours Start 2026.02.02 @ 23:46:18 End 2026.02.03 @ 00:34:10 Sessions 3 Manual Loads 0 Difficulty Rogue Special Mode None Game No. 87 Rogue 87 Adventurer 0 Explorer 0 Win Type - Total 0 Types 0/0/0/0/0/0/0/0/0/0 Lore% 19 Gallery% 26 Achievement% 22 Wizard Run 0 Options --------- Layout 0 ASCII 0 Keyboard 1 Movement Arrows Keybinds 0 Fullscreen 1 Font 18/Smallcaps Map View 38x25 Zoom Use 93% Tactical HUD 1 Map Filters NONE Filters NONE Steam 1 RUN: 86240313-c9f1-4f02-b844-9233f0de7218